bitfinex/quotes_SOLUSD_20241101
["timestamp","ask_amount","ask_price","bid_price","bid_amount"]
[1730448803606,10.27138518,166.26,166.22,44.833284]
[1730448805131,10.27138518,166.26,166.23,0.12549]
[1730448807026,10.27138518,166.26,166.25,23.902374]
[1730448807432,10.27138518,166.27,166.25,23.902374]
[1730448809421,10.27138518,166.26,166.25,23.902374]
[1730448810223,10.27138518,166.26,166.25,30.168354]
[1730448810428,10.27138518,166.27,166.26,0.12549]
[1730448811609,10.27138518,166.27,166.25,24.027864]
[1730448811814,10.27138518,166.26,166.25,23.776884]
[1730448812421,10.27138518,166.26,166.25,23.902374]
[1730448813124,10.27138518,166.26,166.25,23.776884]
[1730448813727,10.27138518,166.26,166.24,23.902374]
[1730448817642,10.27138518,166.25,166.22,15.0403]
[1730448817828,10.27138518,166.24,166.22,15.0403]
[1730448818028,10.27138518,166.24,166.22,0.12549]
[1730448818337,10.27138518,166.23,166.19,27.33853794]
[1730448818544,10.27138518,166.24,166.19,37.60992312]
[1730448818834,10.27138518,166.25,166.21,0.12549]
[1730448819223,10.27138518,166.24,166.21,0.12549]
[1730448819835,10.27138518,166.24,166.2,6.14199]
[1730448819836,10.27138518,166.24,166.2,23.902374]
[1730448820041,10.27138518,166.23,166.2,23.776884]
[1730448822826,10.27138518,166.24,166.2,29.793584]
[1730448827227,10.27138518,166.25,166.22,23.776884]
[1730448828219,10.27138518,166.26,166.22,23.776884]
[1730448828419,10.27138518,166.26,166.24,23.776884]
[1730448828635,10.27138518,166.25,166.24,23.776884]
[1730448835066,10.27138518,166.25,166.23,23.776884]
[1730448837268,10.27138518,166.25,166.22,23.776884]
[1730448837761,10.27138518,166.26,166.23,0.12549]
[1730448837972,10.27138518,166.27,166.23,0.37647]
[1730448838265,63.08074072,166.32,166.23,0.37647]
[1730448838266,10.27138518,166.26,166.23,0.37647]
[1730448838938,10.27138518,166.26,166.24,23.776884]
[1730448839571,10.27138518,166.25,166.24,23.902374]
[1730448840468,10.27138518,166.25,166.23,23.776884]
[1730448840670,10.27138518,166.24,166.23,23.776884]
[1730448841179,10.27138518,166.25,166.22,23.776884]
[1730448841479,10.27138518,166.24,166.22,23.776884]
[1730448842388,63.18074072,166.32,166.21,27.33712471]
[1730448842389,10.27138518,166.23,166.21,6.27962471]
[1730448842573,10.27138518,166.22,166.21,6.27962471]
[1730448843074,10.27138518,166.22,166.17,6.0176]
[1730448843274,10.27138518,166.21,166.17,6.0176]
[1730448843511,10.27138518,166.21,166.17,12.29187441]
[1730448843796,10.27138518,166.21,166.18,23.902374]
[1730448844093,10.27138518,166.22,166.18,23.902374]
[1730448844271,10.27138518,166.21,166.18,23.902374]
[1730448844459,10.27138518,166.21,166.18,29.919874]
[1730448844971,10.27138518,166.23,166.2,0.12549]
[1730448846077,10.27138518,166.25,166.22,0.12549]
[1730448848003,10.27138518,166.25,166.23,23.776884]
[1730448850300,10.27138518,166.25,166.23,29.792584]
[1730448850673,10.27138518,166.26,166.24,0.12549]
[1730448850873,10.27138518,166.27,166.24,0.37647]
[1730448851199,6.1199,166.31,166.24,0.37647]
[1730448851200,10.27138518,166.25,166.24,0.12549]
[1730448851394,10.27138518,166.25,166.22,23.776884]
[1730448851701,10.27138518,166.23,166.21,23.776884]
[1730448851875,10.27138518,166.24,166.22,0.12549]
[1730448852276,10.27138518,166.25,166.22,0.12549]
[1730448852799,6.1199,166.31,166.22,0.12549]
[1730448852800,10.27138518,166.24,166.22,0.12549]
[1730448853795,10.27138518,166.23,166.22,0.12549]
[1730448854310,10.27138518,166.24,166.22,29.918474]
[1730448854479,10.27138518,166.23,166.22,21.18189]
[1730448854787,10.27138518,166.23,166.22,44.958774]
[1730448855292,10.27138518,166.24,166.23,23.776884]
[1730448863408,10.27138518,166.25,166.23,23.776884]
[1730448863609,10.27138518,166.24,166.23,23.902374]
[1730448864411,10.27138518,166.26,166.24,0.12549]
[1730448866029,6.1199,166.31,166.24,0.12549]
[1730448866030,10.27138518,166.25,166.24,0.12549]
[1730448870025,10.27138518,166.26,166.24,0.12549]
[1730448870929,10.27138518,166.25,166.24,0.12549]
[1730448878901,10.27138518,166.25,166.23,23.776884]
[1730448879107,10.27138518,166.24,166.23,23.776884]
[1730448880026,10.27138518,166.24,166.23,23.902374]
[1730448883930,10.27138518,166.24,166.23,23.776884]
[1730448884231,10.27138518,166.24,166.22,23.776884]
[1730448884425,10.27138518,166.23,166.22,23.902374]
[1730448884611,10.27138518,166.24,166.22,23.902374]
[1730448886440,10.27138518,166.24,166.22,23.902374]
[1730448888035,10.27138518,166.23,166.22,0.12549]
[1730448888228,10.27138518,166.24,166.22,0.12549]
[1730448891624,10.27138518,166.25,166.22,0.12549]
[1730448893241,6.2199,166.31,166.22,0.12549]
[1730448893242,10.27138518,166.24,166.22,0.12549]
[1730448896018,10.27138518,166.23,166.22,0.12549]
[1730448897044,10.27138518,166.24,166.23,23.776884]
[1730448899851,10.27138518,166.25,166.23,23.776884]
[1730448900028,10.27138518,166.24,166.23,23.776884]
[1730448900649,10.27138518,166.25,166.23,23.776884]
[1730448900949,10.27138518,166.26,166.23,23.776884]
[1730448901133,10.27138518,166.26,166.23,29.792584]
[1730448902323,10.27138518,166.26,166.24,0.12549]
[1730448904857,10.27138518,166.25,166.24,0.12549]
[1730448905457,10.27138518,166.26,166.24,0.12549]
[1730448907471,10.27138518,166.25,166.24,0.12549]
[1730448908957,10.27138518,166.26,166.24,0.12549]
[1730448911540,10.27138518,166.26,166.23,44.831984]
[1730448911541,10.27138518,166.25,166.23,38.816284]
[1730448911766,10.27138518,166.24,166.23,38.816284]
[1730448912261,10.27138518,166.24,166.23,38.941774]
[1730448912645,10.27138518,166.25,166.23,38.941774]
[1730448914269,10.27138518,166.28,166.24,0.37647]
[1730448914453,41.08554072,166.32,166.24,0.37647]
[1730448914454,10.27138518,166.27,166.24,0.37647]
[1730448914639,10.27138518,166.27,166.26,23.776884]
[1730448915150,10.27138518,166.28,166.26,23.776884]
[1730448916140,10.27138518,166.27,166.26,23.902374]
[1730448916366,10.27138518,166.28,166.26,23.902374]
[1730448916770,10.27138518,166.28,166.27,0.12549]
[1730448918268,10.27138518,166.3,166.27,0.37647]
[1730448918479,6.0217,166.35,166.27,0.37647]
[1730448918480,10.27138518,166.31,166.29,0.12549]
[1730448920172,10.27138518,166.32,166.29,0.37647]
[1730448920547,10.27138518,166.34,166.29,31.69525518]
[1730448920765,10.27138518,166.34,166.31,0.37647]
[1730448921065,10.27138518,166.36,166.31,10.64785518]
[1730448921269,10.27138518,166.36,166.33,0.37647]
[1730448921647,10.27138518,166.36,166.35,0.12549]
[1730448922067,10.27138518,166.37,166.35,0.12549]
[1730448922267,10.89277658,166.39,166.35,0.37647]
[1730448922744,0.6213914,166.39,166.35,10.64785518]
[1730448922949,0.6213914,166.39,166.37,10.64785518]
[1730448923162,0.6213914,166.39,166.38,23.902374]
[1730448923667,0.6213914,166.39,166.38,0.12549]
[1730448924372,0.6213914,166.39,166.38,0.37647]
[1730448924950,0.6213914,166.39,166.38,0.12549]
[1730448928049,0.6213914,166.39,166.38,6.38677]
[1730448928354,0.6213914,166.39,166.38,40.43503918]
[1730448934661,0.6213914,166.39,166.38,57.02813918]
[1730448935374,10.27138518,166.53,166.42,0.1]
[1730448935583,10.27138518,166.54,166.49,23.776884]
[1730448935872,22.5815914,166.56,166.49,23.776884]
[1730448935873,10.27138518,166.53,166.49,23.776884]
[1730448936077,10.27138518,166.53,166.48,23.902374]
[1730448936249,10.27138518,166.53,166.48,34.17375918]
[1730448936448,10.27138518,166.55,166.5,10.39687518]
[1730448936657,10.27138518,166.54,166.5,0.12549]
[1730448936859,10.27138518,166.54,166.48,34.04826918]
[1730448937061,10.27138518,166.54,166.5,23.776884]
[1730448937457,10.27138518,166.55,166.5,23.776884]
[1730448937877,10.27138518,166.55,166.5,10.27138518]
[1730448938067,10.27138518,166.55,166.51,23.776884]
[1730448938883,10.27138518,166.55,166.5,23.776884]
[1730448939086,10.27138518,166.54,166.5,23.776884]
[1730448939380,10.27138518,166.52,166.48,23.776884]
[1730448939858,10.27138518,166.53,166.48,23.776884]
[1730448940593,10.27138518,166.5,166.45,10.39687518]
[1730448940760,10.27138518,166.49,166.44,15.02]
[1730448940963,10.27138518,166.48,166.42,10.27138518]
[1730448941286,10.27138518,166.49,166.44,10.27138518]
[1730448941480,10.27138518,166.47,166.42,10.27138518]
[1730448941664,10.27138518,166.47,166.43,0.12549]
[1730448942475,10.27138518,166.47,166.42,40.05706918]
[1730448942672,10.27138518,166.48,166.42,40.05706918]
[1730448942866,10.27138518,166.48,166.43,10.27138518]
[1730448943283,10.27138518,166.48,166.44,23.776884]
[1730448943669,26.48208518,166.5,166.44,34.04826918]
[1730448943876,26.48208518,166.5,166.44,55.07676918]
[1730448944389,10.27138518,166.51,166.46,23.776884]
[1730448945283,6.2251,166.53,166.46,23.776884]
[1730448945284,10.27138518,166.5,166.46,23.776884]
[1730448945679,10.27138518,166.51,166.46,29.784284]
[1730448946478,10.27138518,166.52,166.47,0.12549]
[1730448946675,10.27138518,166.53,166.47,10.39687518]
[1730448946882,10.27138518,166.53,166.48,23.776884]
[1730448947090,10.27138518,166.53,166.48,10.27138518]
[1730448947302,10.27138518,166.53,166.49,23.776884]
[1730448947478,10.27138518,166.52,166.49,23.776884]
[1730448947682,10.27138518,166.52,166.48,23.776884]
[1730448947987,10.27138518,166.51,166.47,23.902374]
[1730448948677,10.27138518,166.52,166.47,23.902374]
[1730448948876,10.27138518,166.53,166.48,10.27138518]
[1730448949196,10.27138518,166.51,166.47,23.902374]
[1730448949379,10.27138518,166.5,166.47,23.902374]
[1730448950086,10.27138518,166.5,166.47,23.776884]
[1730448950590,10.27138518,166.5,166.46,23.902374]
[1730448952200,10.27138518,166.5,166.46,29.909774]
[1730448952699,10.27138518,166.52,166.47,0.25098]
[1730448953069,10.27138518,166.51,166.47,0.25098]
[1730448953680,10.27138518,166.51,166.48,23.902374]
[1730448954275,0.6213914,166.56,166.48,23.902374]
[1730448954276,10.27138518,166.52,166.48,23.902374]
[1730448954785,10.27138518,166.51,166.48,23.902374]
[1730448956489,10.27138518,166.5,166.48,23.902374]
[1730448956696,10.27138518,166.49,166.47,23.776884]
[1730448957085,10.27138518,166.48,166.45,6.0075]
[1730448957399,10.27138518,166.48,166.46,23.776884]
[1730448957899,10.27138518,166.48,166.46,23.902374]
[1730448959006,10.27138518,166.47,166.4,6.26823956]
[1730448959181,10.27138518,166.42,166.4,6.26823956]
[1730448959595,10.27138518,166.41,166.38,21.0351]
[1730448959976,10.27138518,166.41,166.39,0.12549]
[1730448960216,10.27138518,166.41,166.39,23.902374]
[1730448961002,10.27138518,166.42,166.39,29.912274]
[1730448961203,10.27138518,166.41,166.39,6.0099]
[1730448962504,10.27138518,166.41,166.4,23.776884]
[1730448962723,10.27138518,166.41,166.36,6.0108]
[1730448963003,10.27138518,166.39,166.36,6.0108]
[1730448963177,10.27138518,166.39,166.37,0.12549]
[1730448963980,10.27138518,166.39,166.37,23.902374]
[1730448964405,10.27138518,166.38,166.37,23.902374]
[1730448964588,10.27138518,166.39,166.37,23.902374]
[1730448964903,10.27138518,166.39,166.37,29.912974]
[1730448965305,10.27138518,166.41,166.39,0.12549]
[1730448965486,10.27138518,166.43,166.39,0.12549]
[1730448965808,10.27138518,166.42,166.39,0.12549]
[1730448966180,10.27138518,166.42,166.41,0.12549]
[1730448966383,10.27138518,166.43,166.41,0.12549]
[1730448967513,10.27138518,166.43,166.42,23.776884]
[1730448968506,10.27138518,166.43,166.4,6.0096]
[1730448968807,10.27138518,166.42,166.4,23.776884]
[1730448969308,10.27138518,166.43,166.41,0.12549]
[1730448970495,10.27138518,166.43,166.42,23.776884]
[1730448971487,10.27138518,166.43,166.42,29.785684]
[1730448971688,10.27138518,166.44,166.42,29.785684]
[1730448971883,10.27138518,166.43,166.42,29.785684]
[1730448972284,10.27138518,166.45,166.43,0.12549]
[1730448973190,10.27138518,166.48,166.43,0.37647]
[1730448973402,10.27138518,166.49,166.45,0.37647]
[1730448974309,10.27138518,166.5,166.47,0.12549]
[1730448975317,10.27138518,166.5,166.49,23.902374]
[1730448978008,10.27138518,166.51,166.49,23.902374]
[1730448980303,10.27138518,166.5,166.49,23.902374]
[1730448980902,10.27138518,166.51,166.49,23.902374]
[1730448981322,15.3381,166.54,166.49,23.902374]
[1730448981323,10.27138518,166.52,166.5,23.902374]
[1730448982721,10.27138518,166.53,166.5,23.902374]
[1730448982894,10.27138518,166.53,166.51,23.902374]
[1730448984222,10.27138518,166.54,166.51,29.907974]
[1730448984999,10.27138518,166.54,166.51,23.902374]
[1730448985717,0.6213914,166.56,166.53,23.902374]
[1730448985921,10.89277658,166.56,166.53,0.12549]
[1730448986099,10.27138518,166.55,166.53,0.12549]
[1730448986306,0.6213914,166.56,166.55,0.12549]
[1730448987123,10.89277658,166.56,166.55,0.12549]
[1730448987424,10.89277658,166.56,166.53,38.789184]
[1730448987720,10.27138518,166.54,166.53,23.902374]
[1730448987926,10.27138518,166.55,166.53,23.902374]
[1730448990621,10.89277658,166.56,166.53,23.902374]
[1730448991031,10.89277658,166.56,166.53,6.13019]
[1730448991231,10.89277658,166.56,166.54,23.776884]
[1730448992007,10.89277658,166.56,166.55,0.12549]
[1730448992424,0.6213914,166.56,166.55,0.12549]
[1730448993642,10.89277658,166.56,166.54,23.776884]
[1730448993827,10.89277658,166.56,166.54,0.25098]
[1730448994118,10.89277658,166.56,166.55,0.12549]
[1730448994331,0.6213914,166.56,166.55,0.12549]
[1730448994716,10.89277658,166.56,166.55,23.902374]
[1730448995020,0.6213914,166.56,166.55,23.902374]
[1730448998327,10.89277658,166.56,166.55,23.776884]
[1730448998531,10.89277658,166.56,166.47,15.0737]
[1730448998731,10.27138518,166.5,166.47,15.0737]
[1730448999038,0.6213914,166.56,166.47,15.0737]
[1730448999039,10.27138518,166.51,166.47,15.0737]
[1730448999205,10.27138518,166.51,166.48,0.12549]
[1730448999610,10.27138518,166.52,166.48,0.12549]
[1730448999937,10.27138518,166.51,166.48,24.153354]
[1730449000111,10.27138518,166.5,166.48,24.153354]
[1730449000433,10.27138518,166.49,166.47,15.0177]
[1730449001641,10.27138518,166.48,166.46,6.26947492]
[1730449001822,10.27138518,166.49,166.47,0.12549]
[1730449002740,10.27138518,166.49,166.47,23.902374]
[1730449003632,10.27138518,166.48,166.47,23.902374]
[1730449004238,10.27138518,166.49,166.47,23.902374]
[1730449004618,10.27138518,166.48,166.47,23.902374]
[1730449004934,10.27138518,166.49,166.47,23.902374]
[1730449005331,10.27138518,166.5,166.47,23.902374]
[1730449006435,10.27138518,166.51,166.47,29.909374]
[1730449006814,10.27138518,166.51,166.48,0.25098]
[1730449007321,10.27138518,166.52,166.49,23.902374]
[1730449007641,10.27138518,166.53,166.49,23.902374]
[1730449008417,10.27138518,166.53,166.49,29.908574]
[1730449008624,10.27138518,166.52,166.49,29.908574]
[1730449008946,0.6213914,166.56,166.5,15.27978]
[1730449008947,10.27138518,166.53,166.5,15.27978]
[1730449009250,10.27138518,166.55,166.53,0.12549]
[1730449009718,10.27138518,166.54,166.53,0.12549]
[1730449010538,10.27138518,166.54,166.49,15.0159]
[1730449010745,10.27138518,166.5,166.49,38.918274]
[1730449010921,10.27138518,166.5,166.49,39.043764]
[1730449011423,10.27138518,166.5,166.49,45.050064]
[1730449011621,10.27138518,166.5,166.49,39.043764]
[1730449011929,10.27138518,166.5,166.47,6.007]
[1730449012119,10.27138518,166.5,166.48,0.12549]
[1730449012540,10.27138518,166.5,166.47,6.007]
[1730449012846,10.27138518,166.49,166.47,6.007]
[1730449013141,10.27138518,166.5,166.48,23.902374]
[1730449013531,10.27138518,166.49,166.48,23.902374]
[1730449014037,0.6213914,166.56,166.48,23.902374]
[1730449014038,10.27138518,166.5,166.48,23.902374]
[1730449015737,10.27138518,166.49,166.48,23.902374]
[1730449017737,10.27138518,166.5,166.49,23.902374]
[1730449019241,10.27138518,166.5,166.49,24.153354]
[1730449019420,10.27138518,166.51,166.5,0.12549]
[1730449020028,10.27138518,166.52,166.5,0.12549]
[1730449020225,10.27138518,166.51,166.5,0.12549]
[1730449021223,10.27138518,166.51,166.5,6.13149]
[1730449021429,10.27138518,166.51,166.5,23.776884]
[1730449021626,10.27138518,166.51,166.46,6.27240345]
[1730449021853,10.27138518,166.47,166.46,6.27240345]
[1730449022030,10.27138518,166.48,166.46,9.29901215]
[1730449023544,10.27138518,166.48,166.47,23.776884]
[1730449024146,10.27138518,166.49,166.47,23.776884]
[1730449024549,10.27138518,166.5,166.48,0.37647]
[1730449024728,10.27138518,166.49,166.47,23.776884]
[1730449024934,10.27138518,166.48,166.47,23.776884]
[1730449026050,10.27138518,166.49,166.47,23.776884]
[1730449026348,10.27138518,166.48,166.47,23.776884]
[1730449027447,10.27138518,166.48,166.46,3.0266087]
[1730449027664,10.27138518,166.47,166.46,3.0266087]
[1730449033357,10.27138518,166.48,166.47,23.776884]
[1730449033663,10.27138518,166.49,166.47,23.776884]
[1730449034669,10.27138518,166.51,166.48,0.37647]
[1730449034963,10.27138518,166.5,166.48,0.37647]
[1730449035170,10.27138518,166.51,166.48,0.37647]
[1730449035664,10.27138518,166.5,166.49,23.902374]
[1730449035867,10.27138518,166.51,166.49,23.902374]
[1730449036574,0.6213914,166.56,166.5,0.12549]
[1730449037065,10.27138518,166.51,166.5,0.12549]
[1730449037974,10.27138518,166.52,166.5,0.12549]
[1730449039170,10.27138518,166.51,166.44,21.0279]
[1730449039480,10.27138518,166.47,166.44,21.0279]
[1730449039852,10.27138518,166.47,166.45,0.12549]
[1730449040654,10.27138518,166.47,166.45,23.902374]
[1730449041876,10.27138518,166.46,166.45,23.776884]
[1730449042082,10.27138518,166.46,166.44,23.776884]
[1730449042375,10.27138518,166.45,166.44,23.776884]
[1730449043978,10.27138518,166.45,166.43,6.25613102]
[1730449044160,10.27138518,166.44,166.43,6.25613102]
[1730449044359,10.27138518,166.44,166.43,30.03301502]
[1730449044555,10.27138518,166.44,166.43,6.25613102]
[1730449044857,10.27138518,166.44,166.43,30.03301502]
[1730449046052,10.27138518,166.44,166.41,23.776884]
[1730449046258,10.27138518,166.42,166.36,21.4824]
[1730449046451,10.27138518,166.4,166.37,3.03285203]
[1730449046654,0.1,166.48,166.37,6.25938084]
[1730449046869,10.27138518,166.38,166.34,21.0351]
[1730449047053,10.27138518,166.37,166.35,3.16002476]
[1730449047263,10.27138518,166.37,166.36,3.03453476]
[1730449047572,10.27138518,166.38,166.36,3.03453476]
[1730449047780,10.27138518,166.38,166.37,3.03453476]
[1730449047987,10.27138518,166.38,166.36,3.03453476]
[1730449048478,10.27138518,166.37,166.36,3.03453476]
[1730449048689,10.27138518,166.37,166.35,12.27169199]
[1730449048690,10.27138518,166.37,166.35,15.30622675]
[1730449049063,10.27138518,166.37,166.35,12.27169199]
[1730449049278,10.27138518,166.37,166.36,23.776884]
[1730449050491,10.27138518,166.37,166.35,6.26059199]
[1730449050702,10.27138518,166.36,166.35,6.26059199]
[1730449050991,10.27138518,166.36,166.35,30.03747599]
[1730449054384,10.27138518,166.36,166.32,6.0122]
[1730449054694,10.27138518,166.33,166.31,6.26344849]
[1730449054903,10.27138518,166.32,166.31,6.38893849]
[1730449055598,10.27138518,166.33,166.32,23.776884]
[1730449056295,10.27138518,166.34,166.32,23.776884]
[1730449056469,10.27138518,166.35,166.33,0.12549]
[1730449056673,10.27138518,166.36,166.33,0.12549]
[1730449057876,10.27138518,166.35,166.34,23.776884]
[1730449058370,10.27138518,166.35,166.33,23.902374]
[1730449058573,10.27138518,166.36,166.34,23.776884]
[1730449059893,10.27138518,166.37,166.34,29.788484]
[1730449061395,10.27138518,166.39,166.35,0.37647]
[1730449062192,10.27138518,166.38,166.35,0.37647]
[1730449062502,10.27138518,166.38,166.35,6.38757]
[1730449062688,10.27138518,166.38,166.36,23.776884]
[1730449064102,10.27138518,166.39,166.36,23.776884]
[1730449065484,16.3235,166.44,166.36,29.787784]
[1730449065485,10.27138518,166.4,166.36,29.787784]
[1730449066388,10.27138518,166.42,166.37,0.37647]
[1730449066600,10.27138518,166.42,166.38,23.776884]
[1730449066895,10.27138518,166.42,166.38,29.786884]
[1730449068303,10.27138518,166.44,166.39,0.12549]
[1730449069484,10.27138518,166.44,166.4,23.776884]
[1730449069687,10.27138518,166.45,166.4,23.776884]
[1730449069891,10.27138518,166.44,166.4,23.776884]
[1730449070692,10.27138518,166.44,166.4,29.786184]
[1730449071302,10.27138518,166.45,166.41,0.37647]
[1730449071606,0.1,166.52,166.42,23.776884]
[1730449071607,10.27138518,166.47,166.42,23.776884]
[1730449071802,10.27138518,166.47,166.43,0.12549]
[1730449071995,16.1365,166.52,166.43,0.12549]
[1730449071996,10.27138518,166.48,166.43,10.64785518]
[1730449072305,10.27138518,166.49,166.44,23.776884]
[1730449072501,10.27138518,166.49,166.45,0.37647]
[1730449072703,16.1365,166.52,166.45,6.38387]
[1730449072704,10.27138518,166.5,166.45,6.38387]
[1730449072923,10.27138518,166.5,166.46,23.776884]
[1730449073684,10.27138518,166.49,166.46,23.776884]
[1730449073991,10.27138518,166.5,166.47,23.776884]
[1730449074811,10.27138518,166.49,166.47,23.776884]
[1730449075108,0.8213914,166.56,166.48,10.64785518]
[1730449075109,10.27138518,166.54,166.48,10.64785518]
[1730449075295,10.27138518,166.53,166.5,0.12549]
[1730449075991,10.27138518,166.54,166.5,0.12549]
[1730449076317,10.27138518,166.54,166.51,23.776884]
[1730449079602,10.27138518,166.52,166.48,0.25098]
[1730449079801,10.27138518,166.5,166.46,30.8521]
[1730449080008,10.27138518,166.5,166.47,0.12549]
[1730449080397,10.27138518,166.5,166.46,15.0178]
[1730449080797,10.27138518,166.52,166.46,31.29658518]
[1730449081101,10.27138518,166.51,166.47,23.902374]
[1730449081305,10.27138518,166.53,166.48,0.12549]
[1730449081501,10.27138518,166.52,166.49,0.12549]
[1730449082111,10.27138518,166.52,166.47,34.04826918]
[1730449082321,10.27138518,166.49,166.43,16.27988518]
[1730449082512,10.27138518,166.49,166.44,0.12549]
[1730449082812,10.27138518,166.49,166.43,16.27988518]
[1730449083222,10.27138518,166.49,166.44,0.12549]
[1730449083391,10.27138518,166.49,166.44,10.27138518]
[1730449083594,10.27138518,166.49,166.44,24.153354]
[1730449083894,10.27138518,166.49,166.44,34.42473918]
[1730449084296,6.0397,166.54,166.44,34.42473918]
[1730449084297,10.27138518,166.5,166.44,34.42473918]
[1730449084498,10.27138518,166.5,166.46,23.776884]
[1730449085411,10.27138518,166.49,166.46,23.776884]
[1730449085600,10.27138518,166.5,166.46,29.783984]
[1730449087120,10.27138518,166.51,166.46,44.802584]
[1730449087494,10.27138518,166.52,166.47,0.37647]
[1730449087718,10.27138518,166.52,166.49,0.12549]
[1730449088596,10.27138518,166.52,166.5,6.006]
[1730449089215,10.27138518,166.51,166.5,29.782884]
[1730449089627,10.27138518,166.51,166.5,23.776884]
[1730449090303,10.27138518,166.52,166.5,23.776884]
[1730449091609,10.27138518,166.53,166.5,23.776884]
[1730449092917,0.6213914,166.56,166.53,24.153354]
[1730449093715,0.6213914,166.56,166.53,0.37647]
[1730449094416,0.6213914,166.56,166.54,23.776884]
[1730449095402,10.27138518,166.55,166.47,31.29548518]
[1730449095602,10.27138518,166.5,166.46,16.4912]
[1730449095815,10.27138518,166.48,166.45,6.0077]
[1730449096019,10.27138518,166.49,166.45,6.0077]
[1730449096220,10.27138518,166.47,166.43,21.27616045]
[1730449096608,0.6213914,166.56,166.43,57.32726045]
[1730449096815,10.27138518,166.53,166.47,10.27138518]
[1730449097220,10.27138518,166.52,166.47,10.27138518]
[1730449097418,10.27138518,166.51,166.45,10.27138518]
[1730449097823,10.27138518,166.51,166.46,0.12549]
[1730449098633,10.27138518,166.51,166.48,23.776884]
[1730449099010,10.27138518,166.52,166.48,23.776884]
[1730449099615,10.27138518,166.51,166.48,23.776884]
[1730449100123,10.27138518,166.52,166.48,23.776884]
[1730449100311,10.27138518,166.53,166.49,6.38277]
[1730449100512,10.27138518,166.53,166.5,23.776884]
[1730449100712,10.27138518,166.54,166.5,23.776884]
[1730449101216,10.27138518,166.53,166.5,23.776884]
[1730449101524,10.27138518,166.55,166.5,44.797584]
[1730449101735,10.27138518,166.55,166.5,55.06896918]
[1730449101913,10.27138518,166.55,166.5,44.797584]
[1730449103544,10.27138518,166.54,166.5,44.797584]
[1730449105235,10.27138518,166.53,166.5,44.797584]
[1730449105826,10.27138518,166.54,166.5,44.797584]
[1730449106030,10.27138518,166.55,166.5,44.797584]
[1730449106721,10.27138518,166.54,166.5,44.797584]
[1730449106935,10.27138518,166.53,166.5,44.797584]
[1730449107936,10.27138518,166.54,166.5,44.797584]
[1730449108140,10.27138518,166.55,166.5,44.797584]
[1730449108444,10.27138518,166.53,166.5,44.797584]
[1730449108942,10.27138518,166.54,166.5,44.797584]
[1730449110442,10.27138518,166.53,166.5,44.797584]
[1730449111215,10.27138518,166.54,166.5,44.797584]
[1730449112718,10.27138518,166.53,166.5,44.797584]
[1730449113846,10.27138518,166.54,166.5,44.797584]
[1730449115928,10.27138518,166.53,166.5,44.797584]
[1730449116638,10.27138518,166.53,166.5,45.99788047]
[1730449117143,10.27138518,166.52,166.5,45.99788047]
[1730449118624,10.27138518,166.51,166.48,29.783284]
[1730449118823,0.6213914,166.56,166.48,29.783284]
[1730449118824,10.27138518,166.5,166.48,29.783284]
[1730449119852,10.27138518,166.49,166.47,12.26262638]
[1730449120054,10.27138518,166.48,166.47,12.26262638]
[1730449120751,10.27138518,166.49,166.47,12.26262638]
[1730449123453,0.8213914,166.56,166.47,12.26262638]
[1730449123454,10.27138518,166.5,166.47,12.26262638]
[1730449123949,10.27138518,166.5,166.47,13.4631379]
[1730449124461,10.27138518,166.51,166.48,23.776884]
[1730449124751,10.27138518,166.52,166.49,1.20045303]
[1730449124930,10.27138518,166.52,166.5,23.776884]
[1730449125635,10.27138518,166.52,166.5,29.782784]
[1730449126534,10.27138518,166.52,166.5,23.776884]
[1730449126856,10.27138518,166.51,166.5,23.776884]
[1730449127036,10.27138518,166.52,166.5,23.776884]
[1730449127632,10.27138518,166.52,166.47,6.25941593]
[1730449127633,10.27138518,166.51,166.47,6.25941593]
[1730449127853,10.27138518,166.48,166.46,3.02851035]
[1730449128159,10.27138518,166.5,166.48,0.12549]
[1730449128338,10.27138518,166.5,166.47,7.45879425]
[1730449128734,10.27138518,166.49,166.47,7.45879425]
[1730449129355,10.27138518,166.48,166.47,7.45879425]
[1730449129543,10.27138518,166.48,166.45,23.776884]
[1730449129747,0.6213914,166.56,166.43,6.2605607]
[1730449129748,10.27138518,166.46,166.43,6.2605607]
[1730449129946,10.27138518,166.45,166.43,6.2605607]
[1730449130454,10.27138518,166.45,166.41,1.20084462]
[1730449130635,10.27138518,166.44,166.4,1.20090994]
[1730449130836,10.27138518,166.45,166.41,6.26082545]
[1730449131358,10.27138518,166.44,166.41,6.26082545]